bitfinex-derivatives/quotes_SOLF0:USTF0_20250426
["timestamp","ask_amount","ask_price","bid_price","bid_amount"]
[1745674743810,24.2,148.48,148.44,8.19097333]
[1745674744616,6.7347,148.44,148.4,6.736]
[1745674744810,6.7347,148.44,148.43,8.19097333]
[1745674749217,6.7347,148.44,148.42,8.19097333]
[1745674749819,6.735,148.43,148.42,8.19097333]
[1745674750719,6.7347,148.44,148.42,8.19097333]
[1745674751221,6.735,148.43,148.39,30.9366]
[1745674751418,6.735,148.43,148.42,8.19097333]
[1745674752119,8.19097333,148.44,148.37,6.7374]
[1745674752318,8.19097333,148.42,148.38,8.19097333]
[1745674753217,6.7368,148.4,148.38,8.19097333]
[1745674753421,8.19097333,148.42,148.38,8.19097333]
[1745674754520,6.7368,148.39,148.38,8.19097333]
[1745674755816,6.7368,148.39,148.37,8.19097333]
[1745674756017,8.19097333,148.39,148.32,30.9397]
[1745674756214,8.19097333,148.38,148.34,8.19097333]
[1745674756919,8.19097333,148.38,148.33,8.19097333]
[1745674757319,6.7383,148.36,148.33,8.19097333]
[1745674757718,8.19097333,148.37,148.33,8.19097333]
[1745674758231,6.7389,148.35,148.32,32.39097333]
[1745674760720,6.7389,148.35,148.33,8.19097333]
[1745674763123,6.7391,148.34,148.33,8.19097333]
[1745674768227,6.7388,148.35,148.33,8.19097333]
[1745674768529,6.7388,148.35,148.34,8.19097333]
[1745674768720,8.19097333,148.39,148.34,8.19097333]
[1745674768917,24.2,148.4,148.36,8.19097333]
[1745674769121,32.39097333,148.4,148.36,8.19097333]
[1745674769530,6.7377,148.37,148.36,8.19097333]
[1745674771830,6.7374,148.38,148.36,8.19097333]
[1745674772029,6.7374,148.38,148.35,8.19097333]
[1745674772634,14.92797333,148.39,148.35,8.19097333]
[1745674772929,6.737,148.39,148.35,8.19097333]
[1745674773132,32.39097333,148.4,148.35,8.19097333]
[1745674774233,6.7373,148.38,148.35,8.19097333]
[1745674776026,6.737,148.39,148.35,8.19097333]
[1745674776233,6.737,148.39,148.36,8.19097333]
[1745674776533,32.33097333,148.41,148.37,8.19097333]
[1745674777231,6.7367,148.4,148.37,8.19097333]
[1745674777630,12.38777333,148.43,148.39,8.19097333]
[1745674777936,24.14,148.44,148.4,8.19097333]
[1745674778327,6.7354,148.43,148.4,8.19097333]
[1745674779638,6.7351,148.43,148.4,8.19097333]
[1745674779928,24.14,148.44,148.4,8.19097333]
[1745674780231,6.7351,148.43,148.4,8.19097333]
[1745674781133,30.8747,148.44,148.41,8.19097333]
[1745674781327,24.14,148.44,148.41,8.19097333]
[1745674781835,30.8746,148.44,148.41,8.19097333]
[1745674782037,8.19097333,148.46,148.42,8.19097333]
[1745674782636,6.7344,148.45,148.42,8.19097333]
[1745674782836,26.1066,148.47,148.43,8.19097333]
[1745674783035,32.33097333,148.48,148.44,8.19097333]
[1745674783234,6.7339,148.46,148.43,8.19097333]
[1745674783437,6.7339,148.46,148.44,8.19097333]
[1745674783638,32.33097333,148.48,148.43,8.19097333]
[1745674785441,6.7341,148.45,148.43,8.19097333]
[1745674785741,8.19097333,148.47,148.43,8.19097333]
[1745674785936,6.7344,148.45,148.43,8.19097333]
[1745674786238,8.19097333,148.47,148.43,8.19097333]
[1745674786739,6.7345,148.44,148.43,8.19097333]
[1745674791244,6.7342,148.45,148.43,8.19097333]
[1745674792343,6.7342,148.45,148.44,8.19097333]
[1745674793044,6.7333,148.47,148.44,8.19097333]
[1745674793243,6.7333,148.47,148.45,8.19097333]
[1745674793443,24.14,148.48,148.45,8.19097333]
[1745674793743,6.7336,148.46,148.45,8.19097333]
[1745674797553,6.733,148.48,148.45,8.19097333]
[1745674797754,6.733,148.48,148.46,8.19097333]
[1745674798756,6.7332,148.47,148.46,8.19097333]
[1745674799556,6.7332,148.47,148.45,8.19097333]
[1745674799859,8.19097333,148.47,148.44,24.14]
[1745674800057,8.19097333,148.47,148.42,8.19097333]
[1745674800358,6.7344,148.45,148.42,8.19097333]
[1745674800559,6.7344,148.45,148.41,24.14]
[1745674800560,6.7344,148.45,148.43,8.19097333]
[1745674800760,6.7344,148.45,148.44,8.19097333]
[1745674801062,6.7333,148.47,148.44,8.19097333]
[1745674801257,6.7333,148.47,148.45,8.19097333]
[1745674801756,6.7329,148.48,148.46,8.19097333]
[1745674801955,24.14,148.5,148.47,8.19097333]
[1745674802359,6.7326,148.49,148.47,8.19097333]
[1745674802559,24.14,148.5,148.47,8.19097333]
[1745674802962,32.33097333,148.5,148.46,8.19097333]
[1745674803761,6.7334,148.47,148.45,8.19097333]
[1745674804962,24.14,148.5,148.46,8.19097333]
[1745674805160,24.14,148.5,148.47,8.19097333]
[1745674805762,24.14,148.5,148.48,8.19097333]
[1745674805962,30.8721,148.5,148.48,8.19097333]
[1745674806260,6.7321,148.5,148.48,8.19097333]
[1745674806566,6.7323,148.49,148.48,8.19097333]
[1745674806759,8.19097333,148.52,148.48,8.19097333]
[1745674807065,32.33097333,148.53,148.49,8.19097333]
[1745674807662,6.7314,148.51,148.49,8.19097333]
[1745674808067,8.19097333,148.52,148.48,8.19097333]
[1745674808268,6.7319,148.5,148.48,8.19097333]
[1745674808764,8.19097333,148.52,148.48,8.19097333]
[1745674809569,6.7321,148.5,148.48,8.19097333]
[1745674810262,6.7315,148.51,148.49,8.19097333]
[1745674810668,6.7315,148.51,148.5,8.19097333]
[1745674811970,6.7311,148.52,148.5,8.19097333]
[1745674813165,6.7313,148.51,148.5,8.19097333]
[1745674813372,8.19097333,148.52,148.48,8.19097333]
[1745674813568,8.19097333,148.5,148.46,8.19097333]
[1745674813771,6.7325,148.49,148.46,8.19097333]
[1745674814168,6.7325,148.49,148.47,8.19097333]
[1745674814474,8.19097333,148.51,148.47,8.19097333]
[1745674816071,8.19097333,148.51,148.45,24.14]
[1745674816275,8.19097333,148.5,148.46,8.19097333]
[1745674816776,6.7323,148.49,148.46,8.19097333]
[1745674819380,6.7323,148.49,148.47,8.19097333]
[1745674819578,6.7327,148.48,148.45,24.14]
[1745674819875,6.7327,148.48,148.47,8.19097333]
[1745674820178,6.7327,148.48,148.46,8.19097333]
[1745674825886,6.7324,148.49,148.46,8.19097333]
[1745674826585,6.7328,148.48,148.46,8.19097333]
[1745674827383,6.7328,148.48,148.45,24.14]
[1745674827384,6.7333,148.47,148.45,32.33097333]
[1745674828785,6.7329,148.48,148.46,8.19097333]
[1745674829993,6.7329,148.48,148.45,24.14]
[1745674830182,6.7332,148.47,148.45,32.33097333]
[1745674831285,6.7332,148.47,148.45,24.14]
[1745674832087,6.7332,148.47,148.45,32.33097333]
[1745674833588,6.7332,148.47,148.45,24.14]
[1745674833787,6.7332,148.47,148.45,32.33097333]
[1745674836688,6.7329,148.48,148.45,32.33097333]
[1745674836889,8.19097333,148.49,148.45,32.33097333]
[1745674838191,6.7331,148.48,148.45,32.33097333]
[1745674840186,6.7331,148.48,148.46,8.19097333]
[1745674841798,6.7324,148.49,148.46,8.19097333]
[1745674842495,6.7327,148.48,148.46,8.19097333]
[1745674842693,6.7327,148.48,148.45,32.33097333]
[1745674842993,6.7334,148.47,148.45,32.33097333]
[1745674843194,6.7334,148.47,148.45,24.14]
[1745674845399,6.7334,148.47,148.44,8.19097333]
[1745674846097,8.19097333,148.49,148.44,8.19097333]
[1745674846397,8.19097333,148.48,148.44,8.19097333]
[1745674847201,6.7333,148.47,148.44,8.19097333]
[1745674848000,6.7336,148.46,148.44,8.19097333]
[1745674850295,6.7333,148.47,148.44,8.19097333]
[1745674850501,6.7333,148.47,148.45,8.19097333]
[1745674850704,12.09917333,148.51,148.46,8.19097333]
[1745674851103,6.7328,148.48,148.46,8.19097333]
[1745674851307,6.7328,148.48,148.45,8.19097333]
[1745674851509,8.19097333,148.5,148.45,8.19097333]
[1745674851707,6.7331,148.48,148.45,8.19097333]
[1745674863520,6.7333,148.47,148.45,8.19097333]
[1745674863820,8.19097333,148.48,148.44,8.19097333]
[1745674864120,6.7333,148.47,148.44,8.19097333]
[1745674864717,6.734,148.46,148.44,8.19097333]
[1745674866624,6.7333,148.47,148.44,8.19097333]
[1745674867626,6.7337,148.46,148.44,8.19097333]
[1745674867826,8.19097333,148.49,148.44,8.19097333]
[1745674868124,6.7336,148.46,148.44,8.19097333]
[1745674869125,6.7333,148.47,148.44,8.19097333]
[1745674870524,6.7338,148.46,148.44,8.19097333]
[1745674873425,6.7338,148.46,148.43,8.7976]
[1745674873631,6.7338,148.46,148.44,8.19097333]
[1745674874028,6.7332,148.47,148.45,8.19097333]
[1745674875225,6.7336,148.46,148.44,8.19097333]
[1745674877431,8.19097333,148.5,148.45,8.19097333]
[1745674877632,8.19097333,148.5,148.46,8.19097333]
[1745674877828,6.733,148.48,148.46,8.19097333]
[1745674878032,6.733,148.48,148.45,8.19097333]
[1745674879635,6.7332,148.47,148.45,8.19097333]
[1745674880134,6.7336,148.46,148.45,8.19097333]
[1745674883139,6.7333,148.47,148.45,8.19097333]
[1745674886845,6.7336,148.46,148.45,8.19097333]
[1745674887041,8.19097333,148.49,148.45,8.19097333]
[1745674887541,6.7334,148.47,148.45,8.19097333]
[1745674888749,6.7334,148.47,148.44,8.19097333]
[1745674890742,6.7334,148.47,148.44,14.92547333]
[1745674890946,6.7334,148.47,148.45,8.19097333]
[1745674892349,64.95683636,148.57,148.46,24.12]
[1745674892544,8.19097333,148.55,148.46,24.12]
[1745674892847,8.19097333,148.53,148.47,8.19097333]
[1745674893043,8.19097333,148.49,148.46,24.12]
[1745674893246,8.19097333,148.49,148.44,8.19097333]
[1745674893446,8.19097333,148.47,148.43,30.8549]
[1745674893647,6.7324,148.49,148.45,8.19097333]
[1745674894742,16.95657333,148.5,148.45,8.19097333]
[1745674895247,10.22457333,148.5,148.45,8.19097333]
[1745674895848,10.22457333,148.5,148.46,6.7336]
[1745674896450,16.95647333,148.5,148.45,14.92487333]
[1745674897644,6.7324,148.49,148.45,14.92487333]
[1745674900552,6.7324,148.49,148.45,8.19097333]
[1745674901753,6.7327,148.48,148.45,8.19097333]
[1745674902251,6.7324,148.49,148.45,14.92487333]
[1745674902454,2.0336,148.5,148.45,14.92487333]
[1745674902951,8.7657,148.5,148.45,14.92487333]
[1745674903356,2.0336,148.5,148.44,6.7344]
[1745674903555,8.19097333,148.49,148.45,8.19097333]
[1745674903747,8.19097333,148.49,148.43,32.31097333]
[1745674904556,8.19097333,148.47,148.43,32.31097333]
[1745674905055,8.19097333,148.47,148.43,24.12]
[1745674905257,8.19097333,148.45,148.41,8.19097333]
[1745674905458,8.19097333,148.44,148.4,24.12]
[1745674905655,8.19097333,148.43,148.4,24.12]
[1745674905850,8.19097333,148.42,148.39,8.19097333]
[1745674906258,14.92667333,148.42,148.39,8.19097333]
[1745674906558,6.7357,148.42,148.39,8.19097333]
[1745674906759,8.19097333,148.45,148.4,8.19097333]
[1745674907058,6.7352,148.43,148.4,8.19097333]
[1745674907550,6.7355,148.42,148.4,8.19097333]
[1745674908056,8.19097333,148.43,148.39,8.19097333]
[1745674908357,6.7361,148.41,148.38,8.19097333]
[1745674910457,6.7361,148.41,148.39,8.19097333]
[1745674911259,6.7356,148.42,148.39,8.19097333]
[1745674914058,6.736,148.41,148.39,8.19097333]
[1745674916059,6.736,148.41,148.38,8.19097333]
[1745674916759,6.7364,148.4,148.38,8.19097333]
[1745674916961,8.19097333,148.43,148.38,8.19097333]
[1745674917262,6.7366,148.4,148.38,8.19097333]
[1745674917957,6.7361,148.41,148.38,8.19097333]
[1745674918156,8.19097333,148.42,148.38,8.19097333]
[1745674919162,8.19097333,148.41,148.37,24.12]
[1745674919358,8.19097333,148.41,148.37,32.31097333]
[1745674920264,6.7366,148.4,148.37,32.31097333]
[1745674920464,6.7366,148.4,148.38,8.19097333]
[1745674920666,8.19097333,148.41,148.38,8.19097333]
[1745674920964,8.19097333,148.4,148.35,8.19097333]
[1745674921160,8.19097333,148.38,148.31,24.18]
[1745674921360,6.7378,148.37,148.34,8.19097333]
[1745674921669,6.7378,148.37,148.35,8.19097333]
[1745674922664,32.37097333,148.39,148.35,8.19097333]
[1745674923163,6.7373,148.38,148.35,8.19097333]
[1745674923365,6.7373,148.38,148.36,8.19097333]
[1745674923563,6.7373,148.38,148.35,8.19097333]
[1745674924570,6.7378,148.37,148.34,8.19097333]
[1745674924867,6.7378,148.37,148.33,8.19097333]
[1745674925070,8.19097333,148.38,148.33,8.19097333]
[1745674925873,6.7385,148.36,148.33,8.19097333]
[1745674926867,8.19097333,148.39,148.34,8.19097333]
[1745674927073,8.19097333,148.39,148.31,24.18]
[1745674927074,32.37097333,148.4,148.36,8.19097333]
[1745674927571,24.18,148.4,148.36,8.19097333]
[1745674927772,6.7375,148.38,148.36,8.19097333]
[1745674927975,32.37097333,148.4,148.35,8.19097333]
[1745674928273,8.19097333,148.39,148.34,8.19097333]
[1745674928476,8.19097333,148.38,148.34,8.19097333]
[1745674928775,8.19097333,148.37,148.33,8.19097333]
[1745674928973,8.19097333,148.36,148.32,8.19097333]
[1745674929173,8.19097333,148.34,148.31,24.18]
[1745674929472,6.7399,148.33,148.29,8.19097333]
[1745674929969,6.7399,148.33,148.28,30.9415]
[1745674930176,6.7399,148.33,148.3,8.19097333]
[1745674930468,6.7401,148.32,148.3,8.19097333]
[1745674932073,8.19097333,148.34,148.29,8.19097333]
[1745674932273,8.19097333,148.33,148.28,32.39097333]
[1745674932772,6.7405,148.31,148.28,32.39097333]
[1745674933073,8.19097333,148.33,148.28,32.39097333]
[1745674933274,8.19097333,148.32,148.28,32.39097333]
[1745674933476,8.19097333,148.33,148.28,32.39097333]
[1745674934777,6.7407,148.31,148.28,32.39097333]
[1745674935171,8.19097333,148.33,148.28,32.39097333]
[1745674935377,6.7413,148.3,148.27,8.19097333]
[1745674939078,6.7413,148.3,148.26,6.7426]
[1745674939079,6.7413,148.3,148.28,8.19097333]
[1745674941983,6.7413,148.3,148.26,8.19097333]
[1745674942282,6.7414,148.29,148.26,8.19097333]
[1745674943084,6.741,148.3,148.28,8.19097333]
[1745674944983,6.741,148.3,148.27,8.19097333]
[1745674946687,6.7413,148.29,148.26,6.7423]
[1745674946888,8.19097333,148.3,148.25,34.30877333]
[1745674947586,6.742,148.28,148.25,34.30877333]
[1745674948487,14.93287333,148.28,148.25,24.2]
[1745674948687,8.19097333,148.27,148.25,24.2]
[1745674949091,6.7427,148.26,148.23,8.19097333]
[1745674949592,14.93337333,148.27,148.23,14.93497333]
[1745674950488,8.19097333,148.32,148.26,8.19097333]
[1745674950689,8.19097333,148.34,148.29,8.19097333]
[1745674951091,6.7403,148.32,148.29,8.19097333]
[1745674953796,8.19097333,148.32,148.27,32.33097333]
[1745674954096,8.19097333,148.28,148.24,24.14]
[1745674954396,14.93307333,148.28,148.24,24.14]
[1745674955096,6.7425,148.27,148.24,24.14]
[1745674956196,6.7427,148.26,148.24,24.14]
[1745674957699,6.7432,148.25,148.24,24.14]
[1745674958102,8.19097333,148.25,148.21,32.33097333]
[1745674958300,6.7437,148.24,148.21,32.33097333]
[1745674959499,8.19097333,148.25,148.21,32.33097333]
[1745674960402,8.19097333,148.24,148.21,24.14]
[1745674960900,6.7443,148.23,148.21,24.14]
[1745674961101,8.19097333,148.24,148.21,24.14]
[1745674961402,6.7445,148.23,148.21,24.14]
[1745674961802,8.19097333,148.24,148.21,24.14]
[1745674962002,8.19097333,148.23,148.21,24.14]
[1745674962202,8.19097333,148.23,148.18,39.07697333]
[1745674962401,8.19097333,148.22,148.18,24.14]
[1745674962997,6.7457,148.2,148.18,24.14]
[1745674963804,6.7459,148.19,148.16,8.19097333]
[1745674964004,6.7459,148.19,148.15,524.45837333]
[1745674964206,14.93697333,148.19,148.15,32.35097333]
[1745674965409,14.93697333,148.19,148.15,39.09857333]
[1745674966210,6.7463,148.18,148.15,24.16]
[1745674966410,8.19097333,148.19,148.15,24.16]
[1745674966611,8.19097333,148.19,148.15,32.35097333]
[1745674966910,14.93717333,148.19,148.15,39.09857333]
[1745674967707,6.7464,148.18,148.15,39.09857333]
[1745674967914,8.19097333,148.18,148.15,24.16]
[1745674968312,6.7471,148.17,148.15,24.16]
[1745674968515,8.19097333,148.18,148.15,24.16]
[1745674968913,8.19097333,148.19,148.15,24.16]
[1745674969115,6.7466,148.18,148.15,24.16]
[1745674969413,6.7466,148.18,148.15,32.35097333]
[1745674970111,8.19097333,148.2,148.16,14.93817333]
[1745674970415,24.16,148.23,148.15,24.16]
[1745674970416,32.35097333,148.23,148.18,8.19097333]
[1745674970916,6.745,148.21,148.18,8.19097333]
[1745674971419,6.7455,148.2,148.16,14.93807333]
[1745674971617,8.19097333,148.2,148.15,32.35097333]
[1745674972016,8.19097333,148.2,148.16,8.19097333]
[1745674972217,14.93667333,148.2,148.16,14.93817333]
[1745674972418,6.7457,148.2,148.16,14.93817333]
[1745674973717,8.19097333,148.21,148.16,8.19097333]
[1745674973923,6.746,148.19,148.16,8.19097333]
[1745674974516,8.19097333,148.18,148.15,24.16]
[1745674974922,6.7472,148.17,148.15,24.16]
[1745674975122,8.19097333,148.17,148.13,8.19097333]
[1745674976325,8.19097333,148.17,148.12,6.7488]
[1745674976623,8.19097333,148.17,148.12,14.93977333]
[1745674976824,6.7478,148.15,148.12,8.19097333]
[1745674977719,6.7482,148.14,148.12,8.19097333]
[1745674978225,8.19097333,148.16,148.12,8.19097333]
[1745674978426,6.748,148.15,148.12,8.19097333]
[1745674979122,8.19097333,148.16,148.11,24.16]
[1745674979322,8.19097333,148.14,148.11,24.16]
[1745674979522,8.19097333,148.14,148.1,8.19097333]
[1745674979725,6.7491,148.12,148.09,12.11777333]
[1745674979928,6.7491,148.12,148.09,10.13457333]
[1745674980728,6.7491,148.12,148.09,8.19097333]
[1745674981024,8.19097333,148.15,148.1,8.19097333]
[1745674981223,8.19097333,148.15,148.12,8.19097333]
[1745674981424,8.19097333,148.15,148.11,8.19097333]
[1745674982022,6.7478,148.15,148.12,8.19097333]
[1745674982928,6.7474,148.16,148.13,8.19097333]
[1745674983124,32.35097333,148.18,148.14,8.19097333]
[1745674983727,6.7469,148.17,148.14,8.19097333]
[1745674984430,30.9064,148.18,148.14,8.19097333]
[1745674984729,24.16,148.18,148.14,8.19097333]
[1745674985130,6.7471,148.17,148.14,8.19097333]
[1745674987132,6.7471,148.17,148.15,8.19097333]
[1745674987526,1.9084,148.21,148.16,8.19097333]
[1745674987723,1.9084,148.21,148.18,8.19097333]
[1745674988634,6.7455,148.2,148.18,8.19097333]
[1745674988830,32.35097333,148.23,148.16,24.16]
[1745674989029,24.16,148.23,148.2,8.19097333]
[1745674989426,8.19097333,148.24,148.2,8.19097333]
[1745674990236,8.19097333,148.23,148.16,24.16]
[1745674990530,8.19097333,148.21,148.17,8.19097333]
[1745674990835,6.7455,148.2,148.17,8.19097333]
[1745674991034,6.7455,148.2,148.18,8.19097333]
[1745674991235,8.19097333,148.22,148.18,8.19097333]
[1745674991635,12.84097176,148.25,148.16,37.00097176]
[1745674992636,6.7464,148.18,148.16,24.16]
[1745674993536,6.7468,148.17,148.16,24.16]
[1745674993739,12.84097176,148.21,148.13,24.16]
[1745674993942,16.89367176,148.21,148.13,24.16]
[1745674994845,6.7477,148.16,148.13,24.16]
[1745674995344,6.7482,148.15,148.13,24.16]
[1745674995543,16.89367176,148.21,148.13,24.16]
[1745674996147,6.748,148.15,148.13,24.16]
[1745674997047,6.7474,148.16,148.13,24.16]
[1745674999946,6.7478,148.15,148.13,24.16]
[1745675002447,6.7482,148.14,148.13,24.16]
[1745675002851,6.7482,148.14,148.1,522.78097176]
[1745675003350,6.7482,148.14,148.1,529.53087176]
[1745675003552,6.7486,148.13,148.1,529.53087176]
[1745675003947,6.7486,148.13,148.1,522.78097176]
[1745675004147,6.7495,148.12,148.1,37.00097176]
[1745675005351,6.7487,148.13,148.1,37.00097176]
[1745675005656,28.2127,148.21,148.12,12.84097176]
[1745675005851,28.2127,148.21,148.14,12.84097176]
[1745675006654,6.7467,148.18,148.14,12.84097176]
[1745675006952,28.2127,148.21,148.14,12.84097176]
[1745675008256,6.7461,148.19,148.15,6.7477]
[1745675008956,24.16,148.24,148.16,12.84097176]
[1745675009959,6.7453,148.21,148.17,6.7467]
[1745675010359,12.84097176,148.23,148.14,37.00097176]
[1745675010858,24.16,148.24,148.16,12.84097176]
[1745675011060,6.7452,148.21,148.16,19.58787176]
[1745675011258,24.16,148.24,148.16,12.84097176]
[1745675011459,24.16,148.24,148.18,12.84097176]
[1745675011759,6.7444,148.23,148.21,8.21490231]
[1745675012159,6.7444,148.23,148.2,8.21490231]
[1745675013256,6.7437,148.24,148.2,8.21490231]
[1745675013460,6.7437,148.24,148.22,8.21490231]
[1745675014764,6.7433,148.25,148.23,8.21490231]
[1745675015555,8.21490231,148.24,148.18,32.37490231]
[1745675015864,8.21490231,148.23,148.18,32.37490231]
[1745675016066,6.7453,148.21,148.18,32.37490231]
[1745675016752,6.7453,148.21,148.19,8.21490231]
[1745675017861,6.7453,148.21,148.18,24.16]
[1745675018464,6.7447,148.22,148.18,24.16]
[1745675018664,6.7447,148.22,148.18,30.9063]
[1745675020167,6.7447,148.22,148.18,24.16]
[1745675021368,4.017,148.26,148.18,24.16]
[1745675021569,4.017,148.26,148.18,30.9062]
[1745675021964,4.017,148.26,148.18,24.16]
[1745675022167,4.017,148.26,148.19,6.7459]
[1745675022468,6.7441,148.23,148.18,24.16]
[1745675022870,6.7437,148.24,148.19,6.7456]
[1745675023168,6.7437,148.24,148.19,19.58492323]
[1745675024870,6.7441,148.23,148.19,19.58492323]
[1745675026171,4.017,148.26,148.2,6.7453]
[1745675026367,24.16,148.27,148.21,12.83932323]
[1745675026971,509.94,148.3,148.22,24.16]
[1745675027570,6.7425,148.27,148.22,30.9044]
[1745675028471,509.94,148.3,148.23,19.58312323]
[1745675028472,6.7419,148.28,148.23,19.58312323]
[1745675028672,24.16,148.3,148.23,19.58312323]
[1745675028872,24.16,148.3,148.22,24.16]
[1745675029071,14.83092323,148.29,148.22,24.16]
[1745675029672,1.9916,148.29,148.22,24.16]
[1745675030470,6.7429,148.26,148.22,24.16]
[1745675030772,1.9916,148.29,148.22,24.16]
[1745675031976,1.9916,148.29,148.22,30.9044]
[1745675032370,6.7428,148.26,148.22,30.9044]
[1745675034077,6.7428,148.26,148.22,24.16]
[1745675035275,6.7428,148.26,148.22,30.9045]
[1745675035878,6.7432,148.25,148.22,30.9045]
[1745675036977,6.7432,148.25,148.22,24.16]
[1745675037578,6.7437,148.24,148.22,24.16]
[1745675037876,6.7437,148.24,148.23,8.2113036]
[1745675038779,6.7441,148.23,148.22,32.3713036]
[1745675040279,6.7441,148.23,148.22,8.2113036]
[1745675040479,8.2113036,148.24,148.19,34.3853036]
[1745675040981,6.7454,148.2,148.19,24.14]
[1745675041176,8.2113036,148.25,148.19,32.3513036]
[1745675041476,8.2113036,148.25,148.2,8.2113036]
[1745675042174,26.2505,148.26,148.23,8.2113036]
[1745675042375,8.2113036,148.28,148.24,8.2113036]
[1745675042575,36.3301036,148.29,148.24,8.2113036]
[1745675042976,6.7426,148.27,148.24,8.2113036]
[1745675043779,6.7428,148.26,148.24,8.2113036]
[1745675044381,6.7424,148.27,148.24,8.2113036]
[1745675044583,26.1316,148.29,148.26,8.2113036]
[1745675044781,24.14,148.29,148.26,8.2113036]
[1745675045075,6.7416,148.29,148.26,8.2113036]
[1745675045883,6.7418,148.28,148.26,8.2113036]
[1745675046084,6.7418,148.28,148.25,8.2113036]
[1745675046283,8.2113036,148.29,148.24,8.2113036]
[1745675046985,14.9530036,148.29,148.25,8.2113036]
[1745675047181,6.7417,148.29,148.25,8.2113036]
[1745675047381,8.2113036,148.3,148.23,24.14]
[1745675047382,8.2113036,148.31,148.27,8.2113036]
[1745675047577,6.7413,148.3,148.27,8.2113036]
[1745675048487,6.7414,148.29,148.27,8.2113036]
[1745675048685,6.7414,148.29,148.26,8.2113036]
[1745675049182,6.7414,148.29,148.27,8.2113036]
[1745675050189,6.741,148.3,148.27,8.2113036]
[1745675050583,8.2113036,148.31,148.27,8.2113036]
[1745675051290,6.741,148.3,148.27,8.2113036]
[1745675052590,6.7413,148.29,148.27,8.2113036]
[1745675053386,32.3513036,148.32,148.28,8.2113036]
[1745675053587,24.14,148.32,148.28,8.2113036]
[1745675053788,10.2504036,148.33,148.28,8.2113036]
[1745675054293,6.7406,148.31,148.28,8.2113036]
[1745675055189,6.7409,148.3,148.29,8.2113036]
[1745675055388,8.2113036,148.32,148.28,8.2113036]
[1745675055594,8.2113036,148.32,148.27,32.3513036]
[1745675055788,6.7413,148.29,148.27,32.3513036]
[1745675055987,8.2113036,148.3,148.27,24.14]
[1745675056193,8.2113036,148.29,148.24,32.3513036]
[1745675056491,6.7419,148.28,148.24,32.3513036]
[1745675056691,6.7419,148.28,148.25,8.2113036]
[1745675056993,6.7424,148.27,148.25,8.2113036]
[1745675061002,8.2113036,148.3,148.24,24.14]
[1745675061003,6.7429,148.26,148.24,24.14]
[1745675061192,6.7429,148.26,148.25,8.2113036]
[1745675061700,6.7429,148.26,148.24,24.14]
[1745675061902,6.7429,148.26,148.25,8.2113036]
[1745675063200,6.7424,148.27,148.25,8.2113036]
[1745675066101,8.2113036,148.26,148.21,2.1]
[1745675066399,8.2113036,148.24,148.2,32.3513036]
[1745675066701,8.2113036,148.23,148.2,24.14]
[1745675066895,2.0928,148.27,148.18,8.2113036]
[1745675067202,6.7457,148.2,148.17,24.14]
[1745675067393,6.7457,148.2,148.17,32.3513036]
[1745675067793,6.7452,148.21,148.17,39.0980036]
[1745675068299,8.2113036,148.21,148.17,24.14]
[1745675068502,8.2113036,148.23,148.19,8.2113036]
[1745675068903,6.7447,148.22,148.19,8.2113036]
[1745675069206,8.2113036,148.24,148.2,8.2113036]
[1745675069505,8.2113036,148.25,148.21,8.2113036]
[1745675069903,6.7438,148.24,148.21,8.2113036]
[1745675070099,6.7438,148.24,148.2,14.9565036]
[1745675071207,14.9551036,148.24,148.19,14.9570036]
[1745675071706,14.9551036,148.24,148.2,6.7453]
[1745675072203,6.7441,148.23,148.22,8.2113036]
[1745675072506,8.2113036,148.29,148.22,8.2113036]
[1745675072808,8.2113036,148.29,148.25,8.2113036]
[1745675073010,8.2113036,148.3,148.26,8.2113036]
[1745675073200,8.2113036,148.31,148.27,8.2113036]
[1745675073405,14.9523036,148.3,148.26,8.2113036]
[1745675073613,8.2113036,148.32,148.27,8.2113036]
[1745675073911,8.2113036,148.32,148.28,8.2113036]
[1745675074411,14.9516036,148.32,148.28,8.2113036]
[1745675074612,6.7403,148.32,148.28,8.2113036]
[1745675074813,14.9516036,148.32,148.28,8.2113036]
[1745675075311,6.7405,148.31,148.28,8.2113036]
[1745675075512,14.9518036,148.31,148.27,8.2113036]